[Event "Titled Tuesday Blitz November 14 Early 2023"]
[White "Henriquez Villagra, Cristobal"]
[Black "Raahul V S"]
[WhiteFideId "3409350"]
[BlackFideId "25035525"]
[WhiteElo "2880"]
[BlackElo "2695"]
[Result "1-0"]
[Round "8"]
[TimeControl "180+1"]
[Date "2023.11.14"]
[WhiteClock "0:00:18"]
[BlackClock "0:00:14"]
[Board "31"]

1. d4 {[%clk 0:03:00]}  d5 {[%clk 0:02:59]} 2. c4 {[%clk 0:03:01]}  e6 {[%clk 0:02:59]} 3. Nc3 {[%clk 0:03:00]}  c5 {[%clk 0:02:59]} 4. e3 {[%clk 0:02:58]}  Nf6 {[%clk 0:02:58]} 5. a3 {[%clk 0:02:58]}  Nc6 {[%clk 0:02:57]} 6. dxc5 {[%clk 0:02:58]}  Bxc5 {[%clk 0:02:58]} 7. b4 {[%clk 0:02:58]}  Bb6 {[%clk 0:02:52]} 8. Bb2 {[%clk 0:02:57]}  O-O {[%clk 0:02:51]} 9. Nf3 {[%clk 0:02:46]}  dxc4 {[%clk 0:02:46]} 10. Bxc4 {[%clk 0:02:45]}  Qxd1+ {[%clk 0:02:45]} 11. Rxd1 {[%clk 0:02:46]}  Bd7 {[%clk 0:02:45]} 12. Na4 {[%clk 0:02:39]}  Rfd8 {[%clk 0:02:34]} 13. Nxb6 {[%clk 0:02:20]}  axb6 {[%clk 0:02:35]} 14. O-O {[%clk 0:02:14]}  Be8 {[%clk 0:02:35]} 15. Bb3 {[%clk 0:02:05]}  Ne4 {[%clk 0:02:33]} 16. Rxd8 {[%clk 0:01:47]}  Rxd8 {[%clk 0:02:31]} 17. Rd1 {[%clk 0:01:46]}  Rxd1+ {[%clk 0:02:19]} 18. Bxd1 {[%clk 0:01:46]}  Nd6 {[%clk 0:02:12]} 19. Nd2 {[%clk 0:01:43]}  Ne7 {[%clk 0:02:12]} 20. a4 {[%clk 0:01:33]}  b5 {[%clk 0:02:03]} 21. Be5 {[%clk 0:01:30]}  Ndc8 {[%clk 0:01:43]} 22. a5 {[%clk 0:01:25]}  Nd5 {[%clk 0:01:43]} 23. Bf3 {[%clk 0:01:22]}  Bc6 {[%clk 0:01:33]} 24. Bxd5 {[%clk 0:01:19]}  Bxd5 {[%clk 0:01:34]} 25. e4 {[%clk 0:01:19]}  Bc6 {[%clk 0:01:34]} 26. f3 {[%clk 0:01:19]}  f6 {[%clk 0:01:34]} 27. Bb8 {[%clk 0:01:02]}  e5 {[%clk 0:01:29]} 28. Kf2 {[%clk 0:01:03]}  Kf7 {[%clk 0:01:27]} 29. Ke3 {[%clk 0:01:04]}  Ke6 {[%clk 0:01:27]} 30. g3 {[%clk 0:01:04]}  Ne7 {[%clk 0:01:09]} 31. Nb3 {[%clk 0:01:03]}  Nc8 {[%clk 0:00:59]} 32. Nc5+ {[%clk 0:01:02]}  Ke7 {[%clk 0:00:59]} 33. Bc7 {[%clk 0:00:57]}  Nd6 {[%clk 0:00:56]} 34. Bxd6+ {[%clk 0:00:55]}  Kxd6 {[%clk 0:00:57]} 35. f4 {[%clk 0:00:55]}  g6 {[%clk 0:00:51]} 36. h4 {[%clk 0:00:48]}  f5 {[%clk 0:00:44]} 37. fxe5+ {[%clk 0:00:33]}  Kxe5 {[%clk 0:00:43]} 38. Nd3+ {[%clk 0:00:34]}  Ke6 {[%clk 0:00:42]} 39. exf5+ {[%clk 0:00:33]}  Kxf5 {[%clk 0:00:36]} 40. g4+ {[%clk 0:00:31]}  Ke6 {[%clk 0:00:28]} 41. Kd4 {[%clk 0:00:32]}  Bf3 {[%clk 0:00:25]} 42. Ne5 {[%clk 0:00:29]}  Be2 {[%clk 0:00:22]} 43. g5 {[%clk 0:00:28]}  Kf5 {[%clk 0:00:19]} 44. Nc6 {[%clk 0:00:19]}  Kg4 {[%clk 0:00:17]} 45. Ke3 {[%clk 0:00:18]}  Bf3 {[%clk 0:00:14]} 46. Ne5+ {[%clk 0:00:18]} 1-0


[Site "https://www.chess.com"]

[Event "Titled Tuesday Blitz November 14 Early 2023"]
[White "Klukin, Kirill"]
[Black "Yaran, Siar"]
[WhiteFideId "24199273"]
[BlackFideId "6323006"]
[WhiteElo "2858"]
[BlackElo "2686"]
[Result "1-0"]
[Round "8"]
[TimeControl "180+1"]
[Date "2023.11.14"]
[WhiteClock "0:00:06"]
[BlackClock "0:00:00"]
[Board "32"]

1. d4 {[%clk 0:03:00]}  Nf6 {[%clk 0:02:59]} 2. Nf3 {[%clk 0:03:01]}  e6 {[%clk 0:02:58]} 3. e3 {[%clk 0:03:01]}  d5 {[%clk 0:02:59]} 4. Bd3 {[%clk 0:03:02]}  Bd6 {[%clk 0:02:59]} 5. O-O {[%clk 0:03:02]}  O-O {[%clk 0:02:59]} 6. b3 {[%clk 0:03:03]}  Nc6 {[%clk 0:02:54]} 7. Bb2 {[%clk 0:03:02]}  Re8 {[%clk 0:02:53]} 8. Ne5 {[%clk 0:02:59]}  Nd7 {[%clk 0:02:52]} 9. Bxh7+ {[%clk 0:02:45]}  Kxh7 {[%clk 0:02:47]} 10. Qh5+ {[%clk 0:02:46]}  Kg8 {[%clk 0:02:47]} 11. Qxf7+ {[%clk 0:02:46]}  Kh7 {[%clk 0:02:48]} 12. f4 {[%clk 0:02:30]}  Rf8 {[%clk 0:02:23]} 13. Qg6+ {[%clk 0:02:30]}  Kg8 {[%clk 0:02:22]} 14. Qxe6+ {[%clk 0:02:30]}  Kh7 {[%clk 0:02:20]} 15. Rf3 {[%clk 0:02:18]}  Be7 {[%clk 0:01:35]} 16. Ng6 {[%clk 0:01:28]}  Rf6 {[%clk 0:01:21]} 17. Rh3+ {[%clk 0:00:59]}  Kxg6 {[%clk 0:01:19]} 18. Qxd5 {[%clk 0:00:34]}  Nde5 {[%clk 0:01:04]} 19. Rg3+ {[%clk 0:00:27]}  Kh7 {[%clk 0:01:00]} 20. Qxd8 {[%clk 0:00:26]}  Nxd8 {[%clk 0:00:50]} 21. fxe5 {[%clk 0:00:25]}  Rg6 {[%clk 0:00:49]} 22. Rxg6 {[%clk 0:00:23]}  Kxg6 {[%clk 0:00:50]} 23. Nd2 {[%clk 0:00:23]}  Ne6 {[%clk 0:00:42]} 24. Nf3 {[%clk 0:00:23]}  Ng5 {[%clk 0:00:41]} 25. Nh4+ {[%clk 0:00:13]}  Kh5 {[%clk 0:00:40]} 26. Nf3 {[%clk 0:00:12]}  Bf5 {[%clk 0:00:37]} 27. Kf2 {[%clk 0:00:10]}  Rf8 {[%clk 0:00:31]} 28. Ke2 {[%clk 0:00:07]}  Bxc2 {[%clk 0:00:18]} 29. Rc1 {[%clk 0:00:07]}  Be4 {[%clk 0:00:18]} 30. Rxc7 {[%clk 0:00:07]}  Nxf3 {[%clk 0:00:17]} 31. Rxe7 {[%clk 0:00:06]}  Ng1+ {[%clk 0:00:16]} 32. Ke1 {[%clk 0:00:04]}  Bxg2 {[%clk 0:00:16]} 33. Rxg7 {[%clk 0:00:04]}  Rf1+ {[%clk 0:00:17]} 34. Kd2 {[%clk 0:00:04]}  Rf2+ {[%clk 0:00:17]} 35. Kc3 {[%clk 0:00:05]}  Ne2+ {[%clk 0:00:17]} 36. Kb4 {[%clk 0:00:05]}  Bd5 {[%clk 0:00:16]} 37. e4 {[%clk 0:00:04]}  Bxe4 {[%clk 0:00:16]} 38. e6 {[%clk 0:00:05]}  Nf4 {[%clk 0:00:15]} 39. e7 {[%clk 0:00:05]}  Nd5+ {[%clk 0:00:16]} 40. Kc5 {[%clk 0:00:05]}  Nxe7 {[%clk 0:00:17]} 41. Rxe7 {[%clk 0:00:05]}  Rxb2 {[%clk 0:00:17]} 42. Rxe4 {[%clk 0:00:05]}  Rxa2 {[%clk 0:00:16]} 43. Re7 {[%clk 0:00:04]}  b6+ {[%clk 0:00:10]} 44. Kc4 {[%clk 0:00:05]}  Kg6 {[%clk 0:00:09]} 45. h4 {[%clk 0:00:05]}  Kf6 {[%clk 0:00:09]} 46. Rb7 {[%clk 0:00:05]}  Rh2 {[%clk 0:00:08]} 47. Rxa7 {[%clk 0:00:05]}  Rxh4 {[%clk 0:00:08]} 48. Ra6 {[%clk 0:00:06]}  Ke6 {[%clk 0:00:08]} 49. Rxb6+ {[%clk 0:00:06]}  Kd7 {[%clk 0:00:09]} 50. Rg6 {[%clk 0:00:06]}  Rh5 {[%clk 0:00:09]} 51. b4 {[%clk 0:00:06]}  Kc7 {[%clk 0:00:09]} 52. d5 {[%clk 0:00:05]}  Rh1 {[%clk 0:00:08]} 53. Kb5 {[%clk 0:00:04]}  Rd1 {[%clk 0:00:08]} 54. Rc6+ {[%clk 0:00:04]}  Kd7 {[%clk 0:00:08]} 55. Kc5 {[%clk 0:00:04]}  Rc1+ {[%clk 0:00:08]} 56. Kb6 {[%clk 0:00:05]}  Rd1 {[%clk 0:00:08]} 57. d6 {[%clk 0:00:05]}  Ra1 {[%clk 0:00:04]} 58. b5 {[%clk 0:00:05]}  Ra8 {[%clk 0:00:04]} 59. Rc2 {[%clk 0:00:05]}  Rb8+ {[%clk 0:00:04]} 60. Ka6 {[%clk 0:00:05]}  Kxd6 {[%clk 0:00:05]} 61. b6 {[%clk 0:00:05]}  Ra8+ {[%clk 0:00:02]} 62. Kb7 {[%clk 0:00:05]}  Ra3 {[%clk 0:00:03]} 63. Rd2+ {[%clk 0:00:05]}  Kc5 {[%clk 0:00:02]} 64. Kc7 {[%clk 0:00:05]}  Rh3 {[%clk 0:00:02]} 65. b7 {[%clk 0:00:06]}  Rh7+ {[%clk 0:00:00]} 66. Rd7 {[%clk 0:00:06]} 1-0


[Site "https://www.chess.com"]

[Event "Titled Tuesday Blitz November 14 Early 2023"]
[White "Maltsevskaya, Aleksandra"]
[Black "Rychkov, Oleg"]
[WhiteFideId "24174041"]
[BlackFideId "4122852"]
[WhiteElo "2682"]
[BlackElo "2846"]
[Result "1/2-1/2"]
[Round "8"]
[TimeControl "180+1"]
[Date "2023.11.14"]
[WhiteClock "0:00:07"]
[BlackClock "0:00:07"]
[Board "33"]

1. e4 {[%clk 0:02:22]}  e5 {[%clk 0:02:59]} 2. Nf3 {[%clk 0:02:22]}  Nc6 {[%clk 0:02:59]} 3. Bb5 {[%clk 0:02:21]}  a6 {[%clk 0:02:58]} 4. Ba4 {[%clk 0:02:21]}  d6 {[%clk 0:02:58]} 5. O-O {[%clk 0:02:20]}  Bg4 {[%clk 0:02:57]} 6. c3 {[%clk 0:02:19]}  Qf6 {[%clk 0:02:55]} 7. d4 {[%clk 0:02:14]}  Ne7 {[%clk 0:02:48]} 8. Be3 {[%clk 0:02:09]}  Bxf3 {[%clk 0:02:35]} 9. Qxf3 {[%clk 0:02:09]}  Qxf3 {[%clk 0:02:34]} 10. gxf3 {[%clk 0:02:10]}  O-O-O {[%clk 0:02:31]} 11. Nd2 {[%clk 0:02:08]}  g5 {[%clk 0:02:28]} 12. d5 {[%clk 0:01:53]}  Nb8 {[%clk 0:02:25]} 13. c4 {[%clk 0:01:53]}  f5 {[%clk 0:02:23]} 14. c5 {[%clk 0:01:53]}  f4 {[%clk 0:01:58]} 15. cxd6 {[%clk 0:01:53]}  fxe3 {[%clk 0:01:58]} 16. dxe7 {[%clk 0:01:52]}  exf2+ {[%clk 0:01:56]} 17. Kxf2 {[%clk 0:01:50]}  Bxe7 {[%clk 0:01:57]} 18. Ke2 {[%clk 0:01:47]}  Bb4 {[%clk 0:01:28]} 19. Rg1 {[%clk 0:01:35]}  h6 {[%clk 0:01:26]} 20. Rac1 {[%clk 0:01:32]}  b5 {[%clk 0:01:24]} 21. Bb3 {[%clk 0:01:30]}  Kb7 {[%clk 0:01:17]} 22. Nf1 {[%clk 0:01:26]}  Kb6 {[%clk 0:01:04]} 23. Ng3 {[%clk 0:01:19]}  c5 {[%clk 0:01:00]} 24. a3 {[%clk 0:01:16]}  Ba5 {[%clk 0:00:53]} 25. Ba2 {[%clk 0:01:13]}  Kb7 {[%clk 0:00:48]} 26. Nf5 {[%clk 0:00:58]}  Bb6 {[%clk 0:00:47]} 27. h4 {[%clk 0:00:58]}  gxh4 {[%clk 0:00:46]} 28. Rg7+ {[%clk 0:00:56]}  Rd7 {[%clk 0:00:40]} 29. Rg6 {[%clk 0:00:56]}  c4 {[%clk 0:00:33]} 30. b3 {[%clk 0:00:56]}  cxb3 {[%clk 0:00:29]} 31. Bxb3 {[%clk 0:00:57]}  h5 {[%clk 0:00:22]} 32. d6 {[%clk 0:00:44]}  Ka7 {[%clk 0:00:17]} 33. Be6 {[%clk 0:00:43]}  Rdh7 {[%clk 0:00:16]} 34. Ne7 {[%clk 0:00:24]}  Rd8 {[%clk 0:00:16]} 35. Nc8+ {[%clk 0:00:24]}  Kb7 {[%clk 0:00:16]} 36. Bd5+ {[%clk 0:00:22]}  Nc6 {[%clk 0:00:13]} 37. Rxc6 {[%clk 0:00:22]}  Rxc8 {[%clk 0:00:12]} 38. d7 {[%clk 0:00:21]}  Rxc6 {[%clk 0:00:12]} 39. Bxc6+ {[%clk 0:00:16]}  Kc7 {[%clk 0:00:12]} 40. Bd5 {[%clk 0:00:05]}  h3 {[%clk 0:00:07]} 41. Rc6+ {[%clk 0:00:05]}  Kxd7 {[%clk 0:00:06]} 42. Kf1 {[%clk 0:00:03]}  h2 {[%clk 0:00:06]} 43. Kg2 {[%clk 0:00:03]}  Bg1 {[%clk 0:00:07]} 44. Rxa6 {[%clk 0:00:03]}  Rg7+ {[%clk 0:00:07]} 45. Kh1 {[%clk 0:00:04]}  Rg3 {[%clk 0:00:07]} 46. Rh6 {[%clk 0:00:02]}  Rxf3 {[%clk 0:00:07]} 47. Rxh5 {[%clk 0:00:02]}  Rf1 {[%clk 0:00:07]} 48. Kg2 {[%clk 0:00:03]}  Rb1 {[%clk 0:00:07]} 49. Rh6 {[%clk 0:00:02]}  Kc7 {[%clk 0:00:07]} 50. Kf3 {[%clk 0:00:02]}  Bd4 {[%clk 0:00:04]} 51. Rxh2 {[%clk 0:00:01]}  Ra1 {[%clk 0:00:05]} 52. Kg4 {[%clk 0:00:02]}  Rxa3 {[%clk 0:00:04]} 53. Kf5 {[%clk 0:00:03]}  Kb6 {[%clk 0:00:05]} 54. Rh6+ {[%clk 0:00:03]}  Kc5 {[%clk 0:00:05]} 55. Rc6+ {[%clk 0:00:04]}  Kb4 {[%clk 0:00:06]} 56. Ke6 {[%clk 0:00:04]}  Rh3 {[%clk 0:00:05]} 57. Rc8 {[%clk 0:00:04]}  Rh6+ {[%clk 0:00:06]} 58. Kd7 {[%clk 0:00:05]}  Rh7+ {[%clk 0:00:06]} 59. Kd6 {[%clk 0:00:05]}  Rh6+ {[%clk 0:00:06]} 60. Kd7 {[%clk 0:00:05]}  Ka3 {[%clk 0:00:05]} 61. Ra8+ {[%clk 0:00:06]}  Kb4 {[%clk 0:00:06]} 62. Rb8 {[%clk 0:00:06]}  Rh7+ {[%clk 0:00:06]} 63. Kd6 {[%clk 0:00:06]}  Ra7 {[%clk 0:00:07]} 64. Bc6 {[%clk 0:00:06]}  Ra5 {[%clk 0:00:07]} 65. Kd5 {[%clk 0:00:06]}  Ka4 {[%clk 0:00:07]} 66. Bd7 {[%clk 0:00:06]}  Kb4 {[%clk 0:00:07]} 67. Bc6 {[%clk 0:00:06]}  Ka4 {[%clk 0:00:07]} 68. Bd7 {[%clk 0:00:07]}  Kb4 {[%clk 0:00:07]} 69. Bc6 {[%clk 0:00:07]} 1/2-1/2


[Site "https://www.chess.com"]

[Event "Titled Tuesday Blitz November 14 Early 2023"]
[White "Ahmad, Khagan"]
[Black "Szpar, Milosz"]
[WhiteFideId "13431552"]
[BlackFideId "1184989"]
[WhiteElo "2620"]
[BlackElo "2840"]
[Result "1-0"]
[Round "8"]
[TimeControl "180+1"]
[Date "2023.11.14"]
[WhiteClock "0:00:03"]
[BlackClock "0:00:02"]
[Board "36"]

1. Nf3 {[%clk 0:02:58]}  c5 {[%clk 0:02:57]} 2. c4 {[%clk 0:02:55]}  Nc6 {[%clk 0:02:57]} 3. Nc3 {[%clk 0:02:55]}  g6 {[%clk 0:02:56]} 4. g3 {[%clk 0:02:52]}  Bg7 {[%clk 0:02:56]} 5. Bg2 {[%clk 0:02:53]}  d6 {[%clk 0:02:54]} 6. O-O {[%clk 0:02:53]}  e6 {[%clk 0:02:51]} 7. e3 {[%clk 0:02:50]}  Nge7 {[%clk 0:02:46]} 8. d4 {[%clk 0:02:50]}  cxd4 {[%clk 0:02:38]} 9. exd4 {[%clk 0:02:49]}  d5 {[%clk 0:02:38]} 10. cxd5 {[%clk 0:02:45]}  exd5 {[%clk 0:02:39]} 11. Re1 {[%clk 0:02:36]}  h6 {[%clk 0:02:35]} 12. Ne5 {[%clk 0:02:28]}  O-O {[%clk 0:02:32]} 13. Nxc6 {[%clk 0:01:43]}  bxc6 {[%clk 0:02:33]} 14. b3 {[%clk 0:01:43]}  Nf5 {[%clk 0:02:33]} 15. Ba3 {[%clk 0:01:37]}  Re8 {[%clk 0:02:30]} 16. Rxe8+ {[%clk 0:01:37]}  Qxe8 {[%clk 0:02:31]} 17. Bc5 {[%clk 0:01:38]}  Kh7 {[%clk 0:02:17]} 18. Qd2 {[%clk 0:01:35]}  Qh8 {[%clk 0:02:13]} 19. Rd1 {[%clk 0:01:19]}  h5 {[%clk 0:02:13]} 20. h4 {[%clk 0:01:18]}  Be6 {[%clk 0:02:10]} 21. Ne2 {[%clk 0:01:15]}  a5 {[%clk 0:02:05]} 22. Qd3 {[%clk 0:01:09]}  Bc8 {[%clk 0:02:02]} 23. Nf4 {[%clk 0:01:08]}  a4 {[%clk 0:01:59]} 24. Bh3 {[%clk 0:01:00]}  axb3 {[%clk 0:01:56]} 25. axb3 {[%clk 0:01:01]}  Ra2 {[%clk 0:01:30]} 26. Nxh5 {[%clk 0:00:38]}  Bh6 {[%clk 0:01:29]} 27. Re1 {[%clk 0:00:24]}  Rd2 {[%clk 0:01:29]} 28. Qf3 {[%clk 0:00:22]}  Qd8 {[%clk 0:00:51]} 29. Re8 {[%clk 0:00:20]}  Qc7 {[%clk 0:00:33]} 30. Re7 {[%clk 0:00:09]}  Rd1+ {[%clk 0:00:18]} 31. Kg2 {[%clk 0:00:07]}  Nxh4+ {[%clk 0:00:15]} 32. gxh4 {[%clk 0:00:06]}  Bxh3+ {[%clk 0:00:15]} 33. Qxh3 {[%clk 0:00:05]}  Qd8 {[%clk 0:00:02]} 34. Rxf7+ {[%clk 0:00:05]}  Kh8 {[%clk 0:00:03]} 35. Qe6 {[%clk 0:00:03]}  Qxh4 {[%clk 0:00:02]} 36. Qe8+ {[%clk 0:00:03]}  Bf8 {[%clk 0:00:02]} 37. Qxf8# {[%clk 0:00:03]} 1-0


[Site "https://www.chess.com"]

[Event "Titled Tuesday Blitz November 14 Early 2023"]
[White "Aaditya Dhingra"]
[Black "Cherniaiev, Tykhon"]
[WhiteFideId "25678191"]
[BlackFideId "14182360"]
[WhiteElo "2619"]
[BlackElo "2836"]
[Result "0-1"]
[Round "8"]
[TimeControl "180+1"]
[Date "2023.11.14"]
[WhiteClock "0:01:20"]
[BlackClock "0:02:16"]
[Board "37"]

1. e4 {[%clk 0:03:00]}  e5 {[%clk 0:02:59]} 2. Nf3 {[%clk 0:03:00]}  Nc6 {[%clk 0:02:59]} 3. Bc4 {[%clk 0:03:00]}  Bc5 {[%clk 0:02:59]} 4. c3 {[%clk 0:02:57]}  Nf6 {[%clk 0:02:59]} 5. d3 {[%clk 0:02:57]}  d6 {[%clk 0:02:59]} 6. a4 {[%clk 0:02:56]}  a6 {[%clk 0:02:57]} 7. a5 {[%clk 0:02:54]}  h6 {[%clk 0:02:56]} 8. Nbd2 {[%clk 0:02:53]}  Qe7 {[%clk 0:02:56]} 9. h3 {[%clk 0:02:51]}  Ba7 {[%clk 0:02:48]} 10. Nf1 {[%clk 0:02:50]}  Be6 {[%clk 0:02:48]} 11. Ne3 {[%clk 0:02:48]}  O-O {[%clk 0:02:47]} 12. g4 {[%clk 0:02:39]}  Bxe3 {[%clk 0:02:45]} 13. Bxe3 {[%clk 0:02:32]}  Bxc4 {[%clk 0:02:46]} 14. dxc4 {[%clk 0:02:32]}  Nxe4 {[%clk 0:02:46]} 15. Qc2 {[%clk 0:02:25]}  Nc5 {[%clk 0:02:39]} 16. Bxc5 {[%clk 0:02:24]}  dxc5 {[%clk 0:02:40]} 17. Qe4 {[%clk 0:02:21]}  Rad8 {[%clk 0:02:28]} 18. h4 {[%clk 0:01:54]}  Qd7 {[%clk 0:02:23]} 19. O-O {[%clk 0:01:38]}  f5 {[%clk 0:02:19]} 20. gxf5 {[%clk 0:01:37]}  Qxf5 {[%clk 0:02:20]} 21. Qxf5 {[%clk 0:01:36]}  Rxf5 {[%clk 0:02:21]} 22. Kg2 {[%clk 0:01:29]}  Rf4 {[%clk 0:02:16]} 23. Kg3 {[%clk 0:01:20]}  Rd3 {[%clk 0:02:16]} 0-1


[Site "https://www.chess.com"]

[Event "Titled Tuesday Blitz November 14 Early 2023"]
[White "Samsonkin, Artiom"]
[Black "Ambartsumova, Karina"]
[WhiteFideId "13503111"]
[BlackFideId "4166299"]
[WhiteElo "2827"]
[BlackElo "2599"]
[Result "1/2-1/2"]
[Round "8"]
[TimeControl "180+1"]
[Date "2023.11.14"]
[WhiteClock "0:00:06"]
[BlackClock "0:00:08"]
[Board "38"]

1. e4 {[%clk 0:03:00]}  e5 {[%clk 0:02:59]} 2. Nf3 {[%clk 0:03:00]}  Nc6 {[%clk 0:02:59]} 3. d4 {[%clk 0:02:54]}  exd4 {[%clk 0:02:59]} 4. Bc4 {[%clk 0:02:54]}  Nf6 {[%clk 0:02:58]} 5. e5 {[%clk 0:02:54]}  d5 {[%clk 0:02:57]} 6. Bb5 {[%clk 0:02:54]}  Ne4 {[%clk 0:02:57]} 7. Nxd4 {[%clk 0:02:53]}  Bd7 {[%clk 0:02:58]} 8. Bxc6 {[%clk 0:02:53]}  bxc6 {[%clk 0:02:58]} 9. O-O {[%clk 0:02:54]}  Bc5 {[%clk 0:02:57]} 10. f3 {[%clk 0:02:53]}  Ng5 {[%clk 0:02:57]} 11. Be3 {[%clk 0:02:53]}  O-O {[%clk 0:02:39]} 12. f4 {[%clk 0:02:50]}  Ne4 {[%clk 0:02:35]} 13. Nd2 {[%clk 0:02:51]}  f6 {[%clk 0:02:27]} 14. Nxe4 {[%clk 0:02:40]}  dxe4 {[%clk 0:02:25]} 15. Qe2 {[%clk 0:02:40]}  Qe7 {[%clk 0:02:06]} 16. Kh1 {[%clk 0:02:38]}  fxe5 {[%clk 0:01:59]} 17. Qc4+ {[%clk 0:02:32]}  Kh8 {[%clk 0:01:50]} 18. Nxc6 {[%clk 0:02:24]}  Bxc6 {[%clk 0:01:50]} 19. Bxc5 {[%clk 0:02:19]}  Qf7 {[%clk 0:01:34]} 20. Qxf7 {[%clk 0:01:30]}  Rxf7 {[%clk 0:01:35]} 21. fxe5 {[%clk 0:01:30]}  Rxf1+ {[%clk 0:01:32]} 22. Rxf1 {[%clk 0:01:31]}  Bd5 {[%clk 0:01:32]} 23. b3 {[%clk 0:01:27]}  h6 {[%clk 0:01:25]} 24. c4 {[%clk 0:01:20]}  Be6 {[%clk 0:01:23]} 25. Kg1 {[%clk 0:01:13]}  Rd8 {[%clk 0:01:16]} 26. Bxa7 {[%clk 0:01:03]}  Ra8 {[%clk 0:01:15]} 27. Bc5 {[%clk 0:00:53]}  Rxa2 {[%clk 0:01:14]} 28. Rf8+ {[%clk 0:00:54]}  Kh7 {[%clk 0:01:14]} 29. Re8 {[%clk 0:00:55]}  Bg4 {[%clk 0:00:49]} 30. e6 {[%clk 0:00:47]}  Re2 {[%clk 0:00:14]} 31. Kf1 {[%clk 0:00:32]}  e3 {[%clk 0:00:14]} 32. h3 {[%clk 0:00:29]}  Bh5 {[%clk 0:00:13]} 33. Rf8 {[%clk 0:00:23]}  Rb2 {[%clk 0:00:05]} 34. Bxe3 {[%clk 0:00:16]}  Rxb3 {[%clk 0:00:05]} 35. Bd4 {[%clk 0:00:16]}  Rd3 {[%clk 0:00:04]} 36. Rd8 {[%clk 0:00:14]}  c5 {[%clk 0:00:04]} 37. Bf6 {[%clk 0:00:13]}  Rxd8 {[%clk 0:00:04]} 38. Bxd8 {[%clk 0:00:13]}  Kg8 {[%clk 0:00:03]} 39. Be7 {[%clk 0:00:13]}  Bg6 {[%clk 0:00:03]} 40. Ke2 {[%clk 0:00:12]}  Be4 {[%clk 0:00:02]} 41. Bxc5 {[%clk 0:00:12]}  Bxg2 {[%clk 0:00:02]} 42. h4 {[%clk 0:00:12]}  Bh3 {[%clk 0:00:02]} 43. e7 {[%clk 0:00:12]}  Kf7 {[%clk 0:00:02]} 44. Ke3 {[%clk 0:00:12]}  Be6 {[%clk 0:00:02]} 45. Kd4 {[%clk 0:00:12]}  g5 {[%clk 0:00:03]} 46. h5 {[%clk 0:00:11]}  Bg4 {[%clk 0:00:02]} 47. Bd6 {[%clk 0:00:06]}  Bxh5 {[%clk 0:00:02]} 48. c5 {[%clk 0:00:06]}  Bg4 {[%clk 0:00:03]} 49. Kd5 {[%clk 0:00:07]}  h5 {[%clk 0:00:03]} 50. c6 {[%clk 0:00:06]}  h4 {[%clk 0:00:03]} 51. c7 {[%clk 0:00:07]}  Be6+ {[%clk 0:00:03]} 52. Kc6 {[%clk 0:00:07]}  g4 {[%clk 0:00:03]} 53. Kb7 {[%clk 0:00:06]}  g3 {[%clk 0:00:04]} 54. c8=Q {[%clk 0:00:06]}  Bxc8+ {[%clk 0:00:04]} 55. Kxc8 {[%clk 0:00:07]}  Ke8 {[%clk 0:00:03]} 56. Kc7 {[%clk 0:00:04]}  g2 {[%clk 0:00:04]} 57. Bh2 {[%clk 0:00:04]}  Kxe7 {[%clk 0:00:04]} 58. Kc6 {[%clk 0:00:05]}  Ke6 {[%clk 0:00:05]} 59. Kc5 {[%clk 0:00:05]}  Kf5 {[%clk 0:00:05]} 60. Kd4 {[%clk 0:00:06]}  Kg4 {[%clk 0:00:06]} 61. Ke3 {[%clk 0:00:06]}  Kh3 {[%clk 0:00:06]} 62. Bg1 {[%clk 0:00:06]}  Kg3 {[%clk 0:00:07]} 63. Bf2+ {[%clk 0:00:05]}  Kh2 {[%clk 0:00:07]} 64. Kf3 {[%clk 0:00:06]}  h3 {[%clk 0:00:07]} 65. Kg4 {[%clk 0:00:04]}  g1=Q+ {[%clk 0:00:07]} 66. Bxg1+ {[%clk 0:00:05]}  Kxg1 {[%clk 0:00:08]} 67. Kxh3 {[%clk 0:00:06]} 1/2-1/2


[Site "https://www.chess.com"]

[Event "Titled Tuesday Blitz November 14 Early 2023"]
[White "Dragun, Kamil"]
[Black "arenal72"]
[WhiteFideId "1134167"]
[WhiteElo "2823"]
[BlackElo "2510"]
[Result "1-0"]
[Round "8"]
[TimeControl "180+1"]
[Date "2023.11.14"]
[WhiteClock "0:00:07"]
[BlackClock "0:00:05"]
[Board "39"]

1. d4 {[%clk 0:03:00]}  d6 {[%clk 0:02:59]} 2. c4 {[%clk 0:02:59]}  e5 {[%clk 0:02:57]} 3. Nf3 {[%clk 0:02:58]}  e4 {[%clk 0:02:57]} 4. Ng5 {[%clk 0:02:50]}  f5 {[%clk 0:02:55]} 5. Nc3 {[%clk 0:02:44]}  Be7 {[%clk 0:02:53]} 6. Nh3 {[%clk 0:02:43]}  Nf6 {[%clk 0:02:52]} 7. Nf4 {[%clk 0:02:38]}  O-O {[%clk 0:02:50]} 8. Nfd5 {[%clk 0:02:38]}  Nxd5 {[%clk 0:02:48]} 9. Nxd5 {[%clk 0:02:39]}  c6 {[%clk 0:02:43]} 10. Nxe7+ {[%clk 0:02:39]}  Qxe7 {[%clk 0:02:44]} 11. Bf4 {[%clk 0:02:39]}  g5 {[%clk 0:02:43]} 12. Bd2 {[%clk 0:02:38]}  f4 {[%clk 0:02:42]} 13. e3 {[%clk 0:02:37]}  Qf7 {[%clk 0:02:33]} 14. h4 {[%clk 0:02:33]}  fxe3 {[%clk 0:02:29]} 15. Bxe3 {[%clk 0:02:32]}  g4 {[%clk 0:02:29]} 16. h5 {[%clk 0:02:14]}  g3 {[%clk 0:02:20]} 17. fxg3 {[%clk 0:02:10]}  Qg7 {[%clk 0:02:19]} 18. Be2 {[%clk 0:01:39]}  Qxg3+ {[%clk 0:02:14]} 19. Kd2 {[%clk 0:01:39]}  Na6 {[%clk 0:02:11]} 20. h6 {[%clk 0:01:26]}  Nb4 {[%clk 0:02:01]} 21. Rh5 {[%clk 0:01:22]}  Rf5 {[%clk 0:02:00]} 22. Rxf5 {[%clk 0:01:06]}  Bxf5 {[%clk 0:02:01]} 23. Qb3 {[%clk 0:01:06]}  c5 {[%clk 0:01:46]} 24. Rf1 {[%clk 0:00:52]}  Bg6 {[%clk 0:01:34]} 25. a3 {[%clk 0:00:31]}  cxd4 {[%clk 0:01:29]} 26. c5+ {[%clk 0:00:31]}  d5 {[%clk 0:01:25]} 27. axb4 {[%clk 0:00:28]}  dxe3+ {[%clk 0:01:21]} 28. Qxe3 {[%clk 0:00:29]}  Qe5 {[%clk 0:01:19]} 29. Kc1 {[%clk 0:00:20]}  a5 {[%clk 0:01:09]} 30. b5 {[%clk 0:00:16]}  d4 {[%clk 0:01:06]} 31. Bc4+ {[%clk 0:00:14]}  Kh8 {[%clk 0:01:05]} 32. Qf4 {[%clk 0:00:14]}  Qxf4+ {[%clk 0:00:55]} 33. Rxf4 {[%clk 0:00:15]}  Rc8 {[%clk 0:00:53]} 34. Kd2 {[%clk 0:00:12]}  e3+ {[%clk 0:00:49]} 35. Ke2 {[%clk 0:00:09]}  Rd8 {[%clk 0:00:49]} 36. c6 {[%clk 0:00:08]}  bxc6 {[%clk 0:00:48]} 37. bxc6 {[%clk 0:00:09]}  d3+ {[%clk 0:00:45]} 38. Kxe3 {[%clk 0:00:08]}  d2 {[%clk 0:00:45]} 39. Be2 {[%clk 0:00:05]}  Kg8 {[%clk 0:00:24]} 40. c7 {[%clk 0:00:05]}  Rc8 {[%clk 0:00:12]} 41. Bc4+ {[%clk 0:00:06]}  Kh8 {[%clk 0:00:12]} 42. Kxd2 {[%clk 0:00:06]}  a4 {[%clk 0:00:05]} 43. Be6 {[%clk 0:00:07]} 1-0


[Site "https://www.chess.com"]

[Event "Titled Tuesday Blitz November 14 Early 2023"]
[White "Finek, Vaclav"]
[Black "Le, Tuan Minh"]
[WhiteFideId "23718293"]
[BlackFideId "12401153"]
[WhiteElo "2706"]
[BlackElo "3038"]
[Result "1-0"]
[Round "8"]
[TimeControl "180+1"]
[Date "2023.11.14"]
[WhiteClock "0:02:32"]
[BlackClock "0:00:00"]
[Board "40"]

1. Nf3 {[%clk 0:02:57]}  d5 {[%clk 0:02:50]} 2. d4 {[%clk 0:02:55]}  Nf6 {[%clk 0:02:48]} 3. c4 {[%clk 0:02:51]}  c6 {[%clk 0:02:49]} 4. Qc2 {[%clk 0:02:49]}  dxc4 {[%clk 0:02:48]} 5. Qxc4 {[%clk 0:02:48]}  Bg4 {[%clk 0:02:49]} 6. Nbd2 {[%clk 0:02:47]}  Nbd7 {[%clk 0:02:48]} 7. g3 {[%clk 0:02:47]}  e6 {[%clk 0:02:49]} 8. Bg2 {[%clk 0:02:47]}  Be7 {[%clk 0:02:49]} 9. O-O {[%clk 0:02:47]}  O-O {[%clk 0:02:49]} 10. Qb3 {[%clk 0:02:45]}  Qb6 {[%clk 0:02:49]} 11. Nc4 {[%clk 0:02:43]}  Qa6 {[%clk 0:02:49]} 12. Bd2 {[%clk 0:02:41]}  Rfd8 {[%clk 0:00:00]} 13. Rfd1 {[%clk 0:02:32]} 1-0


[Site "https://www.chess.com"]